Cogmind - Beta 14 @@@ ROGUE MODE // 2024.10.13 @ 08:39:56 Player: laeb2 Result: Destroyed by 4T-427(z) with Zionite Laser-S Performance ------------- Evolutions (1) 500 Regions Visited (6) 1200 Robots Destroyed (63) 315 Value Destroyed (1042) 1042 Prototype IDs (7) 140 Alien Tech Used (0) 0 Bonus (600) 600 TOTAL SCORE: 3797 Bonus ------- Met Imprinter 300 Was Imprinted 300 Cogmind --------- Core Integrity 0/400 Matter 178/300 Energy 100/100 System Corruption 0% Temperature Cool (93) Movement Walking (410) Ox4 Location -7/Deep Caves Parts ------- > --- POWER (1) -------- (None) > --- PROPULSION (3) --- Improved Titanium Leg > --- UTILITY (3) ------ Huge Storage Unit Core Shielding > --- WEAPON (2) ------- Spread Laser Makeshift Axe > --- INVENTORY (25) --- Light Ion Engine Light Ion Engine Makeshift Power Source Aluminum Leg Aluminum Leg Improved Aluminum Leg Carbon-fiber Leg Heat Sink Small Storage Unit Improved Terrain Scanner Hacking Suite Authchip [R/Combat] Phasing AFG Minigun Peak State ------------ > --- POWER ------------ Improved Ion Engine > --- PROPULSION ------- Carbon-fiber Leg Carbon-fiber Leg Improved Titanium Leg > --- UTILITY ---------- Huge Storage Unit Thief Drone Bay Phasing AFG > --- WEAPON ----------- Minigun Makeshift Axe > --- INVENTORY -------- Light Ion Engine Light Ion Engine Makeshift Power Source Light Angular Momentum Engine Aluminum Leg Aluminum Leg Improved Aluminum Leg Wheel Wheel Compact Wheel Heat Sink Small Storage Unit Improved Terrain Scanner Core Shielding Medium Armor Plating Hardened Medium Armor Plating Hacking Suite Authchip [R/Combat] Spread Laser Minigun Minigun Minigun Grenade Launcher Plasma Cutter [Rating: 45] Favorites ----------- Power Ion Engine Engine Ion Engine Propulsion Carbon-fiber Leg Treads Light Treads Leg Carbon-fiber Leg Wheel Armored Wheel Utility Huge Storage Unit Device Thief Drone Bay Storage Huge Storage Unit Processor Terrain Scan Processor Protection Medium Armor Plating Weapon Minigun Energy Gun Small Laser Ballistic Gun Minigun Launcher Grenade Launcher Special Weapon Plasma Cutter Slashing Weapon Makeshift Axe Build | -11 -10 -10 -9 -9 -7 -7 ------- Run | Yrd Mat Min Mat Min Zio Dee Slots Evolved 2 | . . . 2 . . . Power . | . . . . . . . Propulsion 1 | . . . 1 . . . Utility 1 | . . . 1 . . . Weapon . | . . . . . . . Parts Attached 78 | 6 8 2 26 11 10 15 Power 9 | 1 3 . 2 1 1 1 Engine 9 | 1 3 . 2 1 1 1 Core . | . . . . . . . Reactor . | . . . . . . . Propulsion 23 | 2 1 1 7 4 3 5 Treads 2 | 2 . . . . . . Leg 14 | . 1 1 4 4 2 2 Wheel 7 | . . . 3 . 1 3 Hover . | . . . . . . . Flight . | . . . . . . . Utility 19 | 1 1 . 8 3 3 3 Device 6 | . 1 . 1 2 2 . Storage 4 | 1 . . 3 . . . Processor 2 | . . . 1 . 1 . Hackware . | . . . . . . . Protection 7 | . . . 3 1 . 3 Artifact . | . . . . . . . Weapon 27 | 2 3 1 9 3 3 6 Energy Gun 7 | 1 1 . 4 . . 1 Energy Cannon . | . . . . . . . Ballistic Gun 13 | 1 2 . 4 3 . 3 Ballistic Cannon . | . . . . . . . Launcher 3 | . . 1 1 . . 1 Special Weapon 1 | . . . . . 1 . Impact Weapon . | . . . . . . . Slashing Weapon 3 | . . . . . 2 1 Piercing Weapon . | . . . . . . . Special Melee Weapon . | . . . . . . . Unidentified Prototypes 2 | . . . . 1 1 . Parts Lost 24 | . 3 . 7 . . 14 Power 4 | . 1 . 1 . . 2 Propulsion 7 | . 1 . 2 . . 4 Utility 5 | . . . 2 . . 3 Weapon 8 | . 1 . 2 . . 5 Highest Loss Streak 14 | . 1 . 4 . . 14 To Critical Strikes . | . . . . . . . Average Slot Usage (%) 98 | . 88 100 90 99 99 98 Engine 11 | . 13 14 10 11 11 11 Leg 26 | . 3 28 19 7 33 30 Wheel 5 | . . . 9 25 . 1 Device 17 | . 6 14 2 4 21 21 Storage 11 | . 14 14 11 11 11 11 Protection 3 | . . . 8 17 . . Energy Gun 1 | . 13 . 13 . . . Ballistic Gun 13 | . 14 14 6 22 11 11 Slashing Weapon 6 | . . . . . 10 . Peak Build Rating 45 | 6 11 11 21 27 45 43 Average Rating 34 | 4 8 10 12 22 40 42 On Entrance 16 | . 6 11 10 19 27 43 Naked Turns . | . . . . . . . Heaviest Build 117 | 10 13 13 107 107 117 115 Greatest Support 50 | 40 40 20 36 40 50 50 Greatest Overweight (x) 3 | . 1 . 2 2 2 3 Average Overweight (x) 1 | . . . . 2 2 2 Largest Inventory Capacity 25 | 8 8 8 25 25 25 25 Average Capacity 23 | 7 8 8 9 25 25 25 Most Carried 25 | 7 8 8 10 25 25 24 Average Carried 22 | 4 7 8 8 20 24 23 Final Capacity 25 | 8 8 8 25 25 25 25 Final Carried 25 | 7 8 8 10 25 24 14 Class Distribution -------------------- 80% | Scavenger-Mutant 19% | Mutant Dominant Class ---------------- Mutant | -10/Materials Mutant | -10/Mines Scavenger-Mutant | -9/Materials Mutant | -9/Mines Scavenger-Mutant | -7/Zion Scavenger-Mutant | -7/Deep Caves Resources | -11 -10 -10 -9 -9 -7 -7 ----------- Run | Yrd Mat Min Mat Min Zio Dee Matter Collected 1474 | 270 93 6 389 617 99 . Remotely . | . . . . . . . Salvage Created 2015 | 126 386 25 556 922 . . Parts 140 | 12 32 6 34 56 . . Haulers Intercepted 3 | . 1 . 2 . . . Recyclers Shooed 6 | . 2 . 2 2 . . Parts Field Recycled . | . . . . . . . Retrieved Matter . | . . . . . . . Parts Self-Destructed 8 | . . . . . 8 . Prevented . | . . . . . . . Kills | -11 -10 -10 -9 -9 -7 -7 ------- Run | Yrd Mat Min Mat Min Zio Dee Combat Hostiles Destroyed 35 | . 13 3 11 8 . . Guns 32 | . 13 . 11 8 . . AOE 3 | . . 3 . . . . Classes Destroyed 10 | 2 3 . 2 3 . . Worker 10 | . . . . 10 . . Builder 3 | . . . . 3 . . Tunneler 6 | 3 . . . 3 . . Hauler 3 | . 1 . 2 . . . Recycler 5 | 1 1 . . 3 . . Operator 1 | . . . 1 . . . Swarmer 15 | . 9 3 2 1 . . Grunt 14 | . 4 . 5 5 . . Duelist 2 | . . . . 2 . . Sentry 4 | . . . 4 . . . Best Kill Streak 7 | 3 7 3 2 4 . . Combat Bots Only 7 | . 7 3 2 3 . . Max Kills in Single Turn 2 | 1 1 2 1 2 . . Gunslinging 1 | . . . . 1 . . Exploded 2 | . . 2 . . . . Melee . | . . . . . . . Uniques/NPCs Destroyed . | . . . . . . . Combat | -11 -10 -10 -9 -9 -7 -7 -------- Run | Yrd Mat Min Mat Min Zio Dee Hostile Shots Fired 302 | . 95 8 97 35 . 67 Missed 81 | . 23 2 28 15 . 13 Damage Taken 3687 | . 675 74 854 383 . 1701 Core 542 | . 124 9 97 31 . 281 Absorbed by Shields . | . . . . . . . Redirected to Shielding 21 | . . . . . . 21 Core Remaining (%) 73 | 100 . 46 . . . . Volleys Fired 185 | 14 51 3 58 53 . 6 Largest 2 | 2 2 2 2 2 . 2 Hottest 85 | 60 85 50 85 50 . 65 Shots Fired 340 | 28 94 6 98 105 . 9 Gun 335 | 28 94 3 96 105 . 9 Cannon . | . . . . . . . Launcher 5 | . . 3 2 . . . Special . | . . . . . . . Kinetic 217 | 14 51 3 36 105 . 8 Thermal 118 | 14 43 . 60 . . 1 Explosive 5 | . . 3 2 . . . Electromagnetic . | . . . . . . . Robot Hit Streak 21 | 4 8 1 21 5 . 8 Robot Miss Streak 6 | 2 3 3 3 6 . 1 Penetration Max . | . . . . . . . Secondary Targets 4 | . 1 . 1 2 . . Max Gunslinging Chain 1 | . 1 . 1 1 . . Shots Hit Robots 207 | 16 57 1 72 53 . 8 Core Hits 98 | 7 26 4 27 27 . 7 Critical Kills 1 | . . . 1 . . . Critical Parts Destroyed 1 | . . . 1 . . . Critical Strikes 3 | . 1 . 2 . . . Burn 1 | . 1 . . . . . Destroy 2 | . . . 2 . . . Melee Attacks 2 | . . . . . 1 1 Impact . | . . . . . . . Slashing 2 | . . . . . 1 1 Piercing . | . . . . . . . Sneak Attacks . | . . . . . . . Combat Hostiles . | . . . . . . . Follow-up Attacks . | . . . . . . . Damage Inflicted 3070 | 146 589 142 878 1128 . 187 Guns 2701 | 146 587 . 870 954 . 144 Cannons . | . . . . . . . Explosions 142 | . . 142 . . . . Melee 43 | . . . . . . 43 Ramming 184 | . 2 . 8 174 . . Kinetic 1730 | 72 232 . 353 954 . 119 Thermal 971 | 74 355 . 517 . . 25 Explosive 142 | . . 142 . . . . Electromagnetic . | . . . . . . . Impact . | . . . . . . . Slashing 43 | . . . . . . 43 Piercing . | . . . . . . . Highest Corruption 4 | . . . . 4 4 . Average Corruption 2 | . . . . 2 4 . Corruption Purged . | . . . . . . . Corruption Blocked . | . . . . . . . Effects 39 | . . . . 37 2 . Message Errors 12 | . . . . 12 . . Matter Fused 11 | . . . . 11 . . Heat Flow Errors 4 | . . . . 4 . . Energy Discharges 1 | . . . . 1 . . Parts Fused 1 | . . . . . 1 . Data Loss (minor) 8 | . . . . 7 1 . Data Loss (major) 2 | . . . . 2 . . Overload Shots . | . . . . . . . Overflow Damage 49 | . . . . 49 . . Projectiles . | . . . . . . . Explosions . | . . . . . . . Melee 49 | . . . . 49 . . Knockbacks 1 | . . . . 1 . . Impact 1 | . . . . 1 . . Kinetic . | . . . . . . . Secondary . | . . . . . . . Self-Inflicted Damage 98 | . . 22 . 76 . . Shots 1 | . . 1 . . . . Rammed 10 | . 1 . . 9 . . Targets Rammed 15 | . 1 . 1 13 . . Kicked 5 | . . . 1 4 . . Crushed . | . . . . . . . Highest Temperature 270 | 60 236 10 169 270 . 108 Average Temperature 50 | 28 65 7 40 50 . 70 Received Heat Transfer 1095 | . 168 . 357 84 . 486 Siege Activations . | . . . . . . . Robots Corrupted 1 | . . . . 1 . . Combat Hostiles . | . . . . . . . Parts Fried 5 | . . . . 5 . . Impact Corruptions 3 | . . . . 3 . . Robots Melted . | . . . . . . . Combat Hostiles . | . . . . . . . Parts Melted 3 | . . . 3 . . . Heat Transferred 2223 | 175 882 . 1160 . . 6 Parts Sabotaged . | . . . . . . . Parts Stolen . | . . . . . . . Parts Stripped . | . . . . . . . Power Chain Reactions . | . . . . . . . Alert | -11 -10 -10 -9 -9 -7 -7 ------- Run | Yrd Mat Min Mat Min Zio Dee Peak Influence 380 | 20 380 161 239 115 . . Initial 75 | . 13 75 62 22 . . Average 84 | 9 226 155 120 48 . . Maximum Alert Level 1 | . 1 . 1 . . . Low Security (%) 93 | 100 53 100 91 100 . . Level 1 6 | . 46 . 8 . . . Level 2 . | . . . . . . . Level 3 . | . . . . . . . Level 4 . | . . . . . . . Level 5 . | . . . . . . . High Security . | . . . . . . . Max Security . | . . . . . . . Squads Dispatched 5 | . 2 . 2 1 . . Investigation 3 | . 2 . 1 . . . Extermination . | . . . . . . . Reinforcement 2 | . . . 1 1 . . Assault . | . . . . . . . Garrison . | . . . . . . . Intercept . | . . . . . . . Searches Triggered . | . . . . . . . Construction Impeded 1 | . . . . 1 . . Haulers Reinforced . | . . . . . . . Active Scanning Responses . | . . . . . . . Cargo Convoy Interrupts . | . . . . . . . Stealth | -11 -10 -10 -9 -9 -7 -7 --------- Run | Yrd Mat Min Mat Min Zio Dee Distress Signals 3 | . 1 . 1 1 . . Communications Jammed . | . . . . . . . Distress Signals . | . . . . . . . Times Spotted 55 | . 18 4 16 14 . 3 Peak Tracking Total 6 | . 6 3 4 3 . 3 Tactical Retreats 4 | . . . . 4 . . Traps | -11 -10 -10 -9 -9 -7 -7 ------- Run | Yrd Mat Min Mat Min Zio Dee Traps Triggered 2 | . 2 . . . . . Indirectly . | . . . . . . . Trap Hack Attempts . | . . . . . . . Triggered . | . . . . . . . Disarmed . | . . . . . . . Reprogrammed . | . . . . . . . Reused . | . . . . . . . Traps Extracted . | . . . . . . . Installed . | . . . . . . . Triggered . | . . . . . . . Machines | -11 -10 -10 -9 -9 -7 -7 ---------- Run | Yrd Mat Min Mat Min Zio Dee Machines Disabled 8 | . 1 . 3 . 4 . Max in Single Turn 3 | . 1 . 3 . 1 . Machines Repaired . | . . . . . . . Machines Dismantled 4 | . . . . . 4 . Machines Sabotaged . | . . . . . . . Overloaded Fab Kills . | . . . . . . . Hacking | -11 -10 -10 -9 -9 -7 -7 --------- Run | Yrd Mat Min Mat Min Zio Dee Machines Accessed 7 | . 2 . 4 1 . . Terminals 6 | . 2 . 4 . . . Fabricators . | . . . . . . . Repair Stations . | . . . . . . . Recycling Units . | . . . . . . . Scanalyzers . | . . . . . . . Garrison Access . | . . . . . . . Total Hacks 22 | . 8 . 13 1 . . Successful 8 | . 2 . 5 1 . . Failed 13 | . 6 . 7 . . . Catastrophic . | . . . . . . . Database Lockouts 1 | . . . 1 . . . Manual 15 | . 4 . 10 . 1 . Terminals 21 | . 8 . 13 . . . Fabricators . | . . . . . . . Repair Stations . | . . . . . . . Recycling Units . | . . . . . . . Scanalyzers . | . . . . . . . Garrison Access . | . . . . . . . Terminal Hacks 8 | . 2 . 5 1 . . Robot Analysis 3 | . . . 3 . . . Prototype ID Bank 2 | . 1 . 1 . . . Open Door 1 | . . . . 1 . . Branch Access Points 1 | . 1 . . . . . Zone Layout 1 | . . . 1 . . . Fabricator Hacks . | . . . . . . . Repair Station Hacks . | . . . . . . . Recycling Unit Hacks . | . . . . . . . Scanalyzer . | . . . . . . . Garrison Access Hacks . | . . . . . . . Unauthorized Hacks . | . . . . . . . Terminals . | . . . . . . . Fabricators . | . . . . . . . Repair Stations . | . . . . . . . Recycling Units . | . . . . . . . Scanalyzers . | . . . . . . . Garrison Access . | . . . . . . . Data Cores Recovered . | . . . . . . . Used . | . . . . . . . Hacking Detections 6 | . 2 . 4 . . . Full Trace Events 2 | . 1 . 1 . . . Feedback Events . | . . . . . . . Feedback Blocked . | . . . . . . . Robot Schematics Acquired 4 | . . . . . 4 . Robots Built . | . . . . . . . Authchips . | . . . . . . . Time . | . . . . . . . Total Robot Build Rating . | . . . . . . . Part Schematics Acquired 15 | . . . . . 15 . Parts Built . | . . . . . . . Authchips . | . . . . . . . Time . | . . . . . . . Total Part Build Rating . | . . . . . . . Parts Repaired . | . . . . . . . Time . | . . . . . . . Parts Recycled . | . . . . . . . Recycled Matter . | . . . . . . . Retrieved Matter . | . . . . . . . Retrieved Components . | . . . . . . . Parts Scanalyzed . | . . . . . . . Part Schematics Acquired . | . . . . . . . Parts Damaged . | . . . . . . . Bothacking | -11 -10 -10 -9 -9 -7 -7 ------------ Run | Yrd Mat Min Mat Min Zio Dee Used RIF Installer . | . . . . . . . Robots Hacked . | . . . . . . . Non-combat . | . . . . . . . Combat . | . . . . . . . Robot Hacks Applied . | . . . . . . . Relay Couplers Released . | . . . . . . . Fabnet Peak Effective % . | . . . . . . . Robots Rewired . | . . . . . . . Allies Hacked . | . . . . . . . Hacks Repelled . | . . . . . . . Allies | -11 -10 -10 -9 -9 -7 -7 -------- Run | Yrd Mat Min Mat Min Zio Dee Total Allies 4 | . . . . . 4 . Largest Group 4 | . . . . . 4 . Highest-Rated Group 153 | . . . . . 153 . Highest-Rated Ally 39 | . . . . . 39 . Total Orders 6 | . . . . 5 1 . EXPLORE 5 | . . . . 5 . . RETURN 1 | . . . . . 1 . Ally Attacks 7 | . . . . 7 . . Total Damage 15 | . . . . 15 . . Kills 1 | . . . . 1 . . Allies Corrupted . | . . . . . . . Allies Melted . | . . . . . . . Intel | -11 -10 -10 -9 -9 -7 -7 ------- Run | Yrd Mat Min Mat Min Zio Dee Robot Analysis Total 3 | . . . 3 . . . Derelict Logs Recovered 4 | . . . . 2 2 . Drone Launches 2 | . . . . 2 . . Drone Recoveries 2 | . . . . 1 1 . Exploration | -11 -10 -10 -9 -9 -7 -7 ------------- Run | Yrd Mat Min Mat Min Zio Dee Turns Passed 15367 | 159 490 121 873 2759 10463 502 Spaces Moved 3487 | 78 175 86 531 1328 1112 177 Core 21 | 21 . . . . . . Treads 180 | 57 123 . . . . . Legs 1897 | . 52 86 320 154 1112 173 Wheels 1389 | . . . 211 1174 . 4 Hover . | . . . . . . . Flight . | . . . . . . . Fastest Speed 50 | 50 160 120 90 120 260 131 Average Speed 179 | 130 168 120 113 136 260 260 Slowest Speed 263 | 160 190 120 190 260 263 263 Overloaded Moves . | . . . . . . . Propulsion Burnouts . | . . . . . . . Robots Hopped . | . . . . . . . Cave-ins Triggered . | . . . . . . . Exploration Rate (%) 43 | 6 43 32 37 84 79 24 Regions Visited 6 Branch Regions 4 Pre-discovered Areas 4 | . . . . 1 3 . Known Exits Taken 1 | . 1 . . . . . Unknown Exits Taken 5 | 1 . 1 1 1 1 . Scrap Searched 3 | . . . . . 3 . Spaces Dug 6 | . . . 6 . . . Terrain Destroyed 27 | . . 16 11 . . . Melee . | . . . . . . . Projectile . | . . . . . . . AOE 27 | . . 16 11 . . . Terrain Rammed . | . . . . . . . Walls Destroyed . | . . . . . . . Machines Disabled . | . . . . . . . Actions | -11 -10 -10 -9 -9 -7 -7 --------- Run | Yrd Mat Min Mat Min Zio Dee Total 12203 | 109 287 97 707 2192 8603 208 Wait 8308 | 1 43 7 62 753 7433 9 Move 3481 | 77 174 85 530 1327 1111 177 Hop . | . . . . . . . Pick Up 55 | 11 6 . 11 24 3 . Fast Attach 23 | 2 . . 15 2 4 . Attach 25 | 4 4 . 1 6 . 10 Detach . | . . . . . . . Swap 30 | . 4 2 10 3 6 5 Drop 42 | . 4 . 19 11 8 . Fire 185 | 14 51 3 58 53 . 6 Melee 2 | . . . . . 1 1 Ram 9 | . . . . 9 . . Kick 5 | . . . 1 4 . . Crush 1 | . 1 . . . . . Escape Stasis . | . . . . . . . Rewire . | . . . . . . . Trap . | . . . . . . . Miscellaneous 37 | . . . . . 37 . Route ------- -11/Scrapyard -10/Materials (discovered 2 exits: *Mat / *Min) -10/Mines -9/Materials (discovered 2 exits: [*Mat] / *Min) -9/Mines -7/Zion -7/Deep Caves History --------- Turn | Location | Event 3 | -11/Scrapyard | Discovered new exit (range 16) 160 | -11/Scrapyard | Entered Materials 168 | -10/Materials | Identified exit to Mines 316 | -10/Materials | Build established: Mutant 394 | -10/Materials | Destroyed 7 combat bots 399 | -10/Materials | Discovered new exit (range 16) 650 | -10/Materials | Entered Mines 654 | -10/Mines | Core integrity fell below 50% 674 | -10/Mines | Assembled infested the area 679 | -10/Mines | Assisted by a Guerilla fighting off Assembled 753 | -10/Mines | Discovered new exit (range 16) 771 | -10/Mines | Entered Materials 771 | -9/Materials | Evolved 2 slots: Propulsion x1, Utility x1 923 | -9/Materials | Lost 4 parts (1p1u2w) 1040 | -9/Materials | Discovered new exit (range 10) 1218 | -9/Materials | Build established: Scavenger-Mutant 1314 | -9/Materials | Central database locked down 1568 | -9/Materials | Discovered new exit (range 14) 1644 | -9/Materials | Entered Mines 1660 | -9/Mines | Met a Derelict bent on vengeance 1665 | -9/Mines | Build established: Mutant 1920 | -9/Mines | Learned Materials terminal intel 3879 | -9/Mines | Found the Drone Emporium 3892 | -9/Mines | Found Prototype Device 3893 | -9/Mines | Identified Thief Drone Bay 4066 | -9/Mines | Build established: Scavenger-Mutant 4089 | -9/Mines | Excavation squad dispatched 4089 | -9/Mines | A large section of the Mines collapsed 4339 | -9/Mines | Excavation squad dispatched 4373 | -9/Mines | A Derelict revealed a hidden shortcut to a safe place 4403 | -9/Mines | Entered Zion 4403 | -7/Zion | Accompanied by 1 ally 4485 | -7/Zion | System corruption cleaned by Quarantine Array 4912 | -7/Zion | Learned Factory interactive machine intel 4923 | -7/Zion | Learned location of Recycling (-7) 5029 | -7/Zion | Learned location of 1 exit from Factory 5150 | -7/Zion | Learned location of Armory (-4) 5354 | -7/Zion | Received a visual enhancement algorithm 5704 | -7/Zion | Found Prototype Device 5704 | -7/Zion | Identified Phasing AFG 6103 | -7/Zion | Met Imprinter 6142 | -7/Zion | Imprinted 6145 | -7/Zion | Declared Zion's savior 14741 | -7/Zion | Discovered new exit (range 5) 14856 | -7/Zion | Saw the warning signs outside the Deep Caves entrance 14866 | -7/Zion | Entered Deep Caves 14866 | -7/Deep Caves | Accompanied by 4 allies 15321 | -7/Deep Caves | Attacked by Z-Imprinter 15349 | -7/Deep Caves | Core integrity fell below 50% 15366 | -7/Deep Caves | Core integrity fell below 20% 15368 | -7/Deep Caves | Destroyed by 4T-427(z) with Zionite Laser-S Last Messages --------------- D2-OP3(M) slips into the shadows. Z1-CPE(M) slips into the shadows. NEW_ZION: Z-Facility proximity alert. Z-Imprinter: GET AWAY FROM HERE! I've worked too hard for our future just to have you ruin everything! Minigun destroyed. Plasma Cutter destroyed. Com. Wheel destroyed. Wheel destroyed. Grenade Launcher destroyed. Minigun destroyed. Thief Drone Bay destroyed. Imp. Ion Engine destroyed. Wheel destroyed. Minigun destroyed. Med. Armor Plating destroyed. Carbon-fiber Leg destroyed. Hrd. Medium Armor Plating destroyed. Lgt. Angular Momentum Engine destroyed. Map ----- +----------------------------------------------------+ | | | | | | | | | | | | | | | | | | | | | | | | | | | | | | | | | | | | | | | | | | | | | ????????????????????? ##?????????????????????????? | | ???????????###########;;;????????????????????????? | | ???????????# ###?????????????????????? | | ?????????? @;#???###???????????????? | | ?????????? z ;##### ##?????######???? | | ?????????? zI ;# # ##??### ##??? | | ?????????? "#### #??? | | ??????????? #??? | | ??????????? #??? | | ???????????? ##??? | | ???????????? #???? | | ????????????" """""" ##??? | | ?????????????""""""""" #### | | ??????????????????"""" | | ???????????????????""" | | ???????????????????? | | ???????????????????""" ## | | ???????????????????""" ###? | | ?????????????????????" ##??? | | ?????????????????????" #???? | | ??????????????????????? #???? | | ????????????????????????? ???? | | ???????????????????????????????? ???? | | ?????????????????????????????????? ???? | | ??????????????????????????????????? #???? | | ????????????????????????????????????? ????? | | ??????????????????????????????????????? ????? | | ?????????????????????????????????????????? ?????? | +----------------------------------------------------+ Best States ------------- Heat Dissipation 38 Energy Generation 18 Energy Capacity 265 Matter Stores 300 Matter Capacity 300 Sight Range 16 Terrain Scan Range 16 Terrain Scan Density 85 Armor Coverage 450 Evasion (%) 55 Recoil Reduction 2 Authchip Count 1 Item Schematics ----------------- Imp. Salvage Targeting Computer | -7/Zion | Archive Imp. Particle Charger | -7/Zion | Archive Gatling Laser | -7/Zion | Archive Magnetic Acceleration Cannon | -7/Zion | Archive Imp. Shield Generator | -7/Zion | Archive Matter Compressor | -7/Zion | Archive System Restoration Module | -7/Zion | Archive Imp. Plasma Cutter | -7/Zion | Archive Imp. Arc Projector | -7/Zion | Archive Imp. EM Pulse Cannon | -7/Zion | Archive Proton Cannon | -7/Zion | Archive Enh. Optical Array | -7/Zion | Archive Recalibrator | -7/Zion | Archive Imp. Hacking Suite | -7/Zion | Archive Arm. Huge Wheel | -7/Zion | Archive Robot Schematics ------------------ O-24 Administrator | -7/Zion | Archive X-82 Rainmaker | -7/Zion | Archive R-06 Scavenger | -7/Zion | Archive W-25 Informer | -7/Zion | Archive Fabricated ------------ Nothing Alien Tech Used ----------------- None Achievements -------------- Adventurer Signs Are For Wimps Challenges ------------ None Game ------ Seed WeldingThunderCoupler Manual? 0 Play Time 00:49:35 Cumulative 47.9 hours Start 2024.10.13 @ 07:22:18 End 2024.10.13 @ 08:39:56 Sessions 1 Manual Loads 0 Difficulty Rogue Special Mode None Game No. 66 Rogue 66 Adventurer 0 Explorer 0 Win Type - Total 1 Types 1/0/0/0/0/0/0/0/0 Lore% 35 Gallery% 41 Achievement% 39 Wizard Run 0 Options --------- Layout 1 ASCII 0 Keyboard 0 Movement Mouse Keybinds 0 Fullscreen 1 Font 32/SmallcapsGlow Map View 50x35 Zoom Use 0% Tactical HUD 0 Map Filters NONE Filters NONE Steam 1 RUN: dd89f272-748c-47a7-9572-bb1983d18c89